fUSD/lending_fUSD_20250804
["ID","MTS","AMOUNT","RATE_DAILY","PERIOD"]
[377297205,1754323869290,-193.901658,0.00052,120]
[377297206,1754323869300,-151.0,0.00052,120]
[377297207,1754323869310,-151.0,0.00052,120]
[377297208,1754323869324,-151.0,0.00052,60]
[377297209,1754323869333,-178.536707,0.00052,60]
[377297210,1754323869344,-151.0,0.00052,120]
[377297211,1754323869354,-151.0,0.00052,120]
[377297212,1754323869365,-151.0,0.00052,120]
[377297213,1754323869374,-151.0,0.00052,120]
[377297214,1754323869383,-151.0,0.00052,120]
[377297215,1754323869393,-151.0,0.00052,120]
[377297216,1754323869403,-151.0,0.00052,120]
[377297217,1754323869412,-151.0,0.00052,120]
[377297218,1754323869421,-177.821078,0.00052,120]
[377297219,1754323869430,-512.756802,0.00052,120]
[377297220,1754323869440,-512.756802,0.00052,120]
[377297221,1754323869450,-512.756802,0.00052,120]
[377297222,1754323869459,-512.756802,0.00052,120]
[377297223,1754323869469,-269.725433,0.00052,120]
[377297224,1754323869479,-269.725433,0.00052,120]
[377297225,1754323869488,-269.725433,0.00052,120]
[377297226,1754323869498,-269.725433,0.00052,120]
[377297227,1754323869507,-151.0,0.00052,120]
[377297228,1754323869516,-151.0,0.00052,120]
[377297229,1754323869526,-309.660303,0.00052,120]
[377297230,1754323869535,-309.660303,0.00052,120]
[377297231,1754323869544,-309.660303,0.00052,120]
[377297232,1754323869554,-309.660303,0.00052,120]
[377297233,1754323869563,-305.054583,0.00052,120]
[377297234,1754323869572,-305.054583,0.00052,120]
[377297235,1754323869582,-305.054583,0.00052,120]
[377297236,1754323869592,-305.054583,0.00052,120]
[377297237,1754323869601,-151.0,0.00052,120]
[377297238,1754323869610,-151.0,0.00052,120]
[377297239,1754323869620,-260.566952,0.00052,120]
[377297240,1754323869630,-151.0,0.00052,120]
[377297241,1754323869640,-704.590221,0.00052,120]
[377297242,1754323869650,-704.590221,0.00052,120]
[377297243,1754323869660,-151.0,0.00052,120]
[377297244,1754323869670,-151.0,0.00052,120]
[377297245,1754323869679,-704.590221,0.00052,120]
[377297246,1754323869689,-704.590221,0.00052,120]
[377297247,1754323869698,-151.0,0.00052,120]
[377297248,1754323869708,-151.0,0.00052,120]
[377297249,1754323869716,-151.0,0.00052,120]
[377297250,1754323869725,-151.0,0.00052,120]
[377297251,1754323869734,-151.0,0.00052,120]
[377297252,1754323869743,-151.0,0.00052,120]
[377297253,1754323869752,-151.0,0.00052,120]
[377297254,1754323869761,-151.0,0.00052,120]
[377297255,1754323869770,-1030.083822,0.00052,120]
[377297256,1754323869780,-1030.083822,0.00052,120]
[377297257,1754323869788,-151.0,0.00052,120]
[377297258,1754323869797,-1030.083822,0.00052,120]
[377297259,1754323869807,-1030.083822,0.00052,120]
[377297260,1754323869819,-190.35187,0.00052,120]
[377297261,1754323869828,-190.35187,0.00052,120]
[377297262,1754323869838,-151.0,0.00052,120]
[377297263,1754323869847,-151.0,0.00052,120]
[377297264,1754323869857,-190.35187,0.00052,120]
[377297265,1754323869867,-190.35187,0.00052,120]
[377297266,1754323869877,-151.0,0.00052,120]
[377297267,1754323869887,-390.157222,0.00052,120]
[377297268,1754323869896,-390.157222,0.00052,120]
[377297269,1754323869906,-151.0,0.00052,120]
[377297270,1754323869916,-390.157222,0.00052,120]
[377297271,1754323869926,-151.0,0.00052,120]
[377297272,1754323869935,-390.157222,0.00052,120]
[377297273,1754323869945,-151.0,0.00052,120]
[377297274,1754323869955,-182.661135,0.00052,120]
[377297275,1754323869964,-182.661135,0.00052,120]
[377297276,1754323869974,-2000.0,0.00052,120]
[377297277,1754323869983,-182.661135,0.00052,120]
[377297278,1754323869993,-182.661135,0.00052,120]
[377297279,1754323870003,-344.725477,0.00052,120]
[377297280,1754323870012,-344.725477,0.00052,120]
[377297281,1754323870022,-344.725477,0.00052,120]
[377297282,1754323870033,-344.725477,0.00052,120]
[377297283,1754323870043,-151.0,0.00052,120]
[377297284,1754323870054,-151.0,0.00052,120]
[377297285,1754323870064,-153.537041,0.00052,30]
[377297286,1754323870074,-169.468656,0.00052,120]
[377297287,1754323870085,-189.632918,0.00052,120]
[377297288,1754323870094,-189.632918,0.00052,120]
[377297289,1754323870104,-189.632918,0.00052,120]
[377297290,1754323870114,-189.632918,0.00052,120]
[377297291,1754323870124,-210.11698,0.00052,120]
[377297292,1754323870135,-210.11698,0.00052,120]
[377297293,1754323870144,-210.11698,0.00052,120]
[377297294,1754323870154,-210.11698,0.00052,120]
[377297295,1754323870164,-151.0,0.00052,120]
[377297296,1754323870174,-151.0,0.00052,120]
[377297297,1754323870184,-151.0,0.00052,120]
[377297298,1754323870193,-151.0,0.00052,120]
[377297299,1754323870203,-151.0,0.00052,120]
[377297300,1754323870213,-151.0,0.00052,120]
[377297301,1754323870223,-151.0,0.00052,120]
[377297302,1754323870233,-151.0,0.00052,120]
[377297303,1754323870243,-151.0,0.00052,120]
[377297304,1754323870253,-151.0,0.00052,120]
[377297305,1754323870262,-355.511064,0.00052,120]
[377297306,1754323870272,-355.511064,0.00052,120]
[377297307,1754323870282,-355.511064,0.00052,120]
[377297308,1754323870292,-355.511064,0.00052,120]
[377297309,1754323870302,-151.0,0.00052,120]
[377297310,1754323870312,-153.230562,0.00052,120]
[377297311,1754323870326,-151.0,0.00052,120]
[377297312,1754323870336,-151.0,0.00052,120]
[377297313,1754323870346,-492.852847,0.00052,120]
[377297314,1754323870355,-492.852847,0.00052,120]
[377297315,1754323870365,-492.852847,0.00052,120]
[377297316,1754323870375,-492.852847,0.00052,120]
[377297317,1754323870385,-1402.693651,0.00052,120]
[377297318,1754323870397,-360.017213,0.00052,120]
[377297319,1754323870406,-1402.693651,0.00052,120]
[377297320,1754323870416,-360.017213,0.00052,120]
[377297321,1754323870426,-360.017213,0.00052,120]
[377297322,1754323870436,-1402.693651,0.00052,120]
[377297323,1754323870446,-360.017213,0.00052,120]
[377297324,1754323870456,-1402.693651,0.00052,120]
[377297325,1754323870467,-319.600664,0.00052,120]
[377297326,1754323870476,-319.600664,0.00052,120]
[377297327,1754323870487,-319.600664,0.00052,120]
[377297328,1754323870497,-319.600664,0.00052,120]
[377297329,1754323870507,-499.430676,0.00052,120]
[377297330,1754323870517,-499.430676,0.00052,120]
[377297331,1754323870527,-499.430676,0.00052,120]
[377297332,1754323870537,-153.035634,0.00052,120]
[377297333,1754323870547,-153.035634,0.00052,120]
[377297334,1754323870556,-153.035634,0.00052,120]
[377297335,1754323870568,-153.035634,0.00052,120]
[377297336,1754323870578,-499.430676,0.00052,120]
[377297337,1754323870588,-151.0,0.00052,120]
[377297338,1754323870598,-151.848957,0.00052,120]
[377297339,1754323870608,-513.0077256,0.00052044,60]
[377297340,1754323870618,-708.0,0.00052055,120]
[377297341,1754323870628,-500.0,0.00052055,120]
[377297342,1754323870638,-500.0,0.00052055,120]
[377297343,1754323870648,-299.74946241,0.00052055,120]
[377297344,1754323870658,-742.0,0.00052055,120]
[377297345,1754323870668,-500.0,0.00052055,2]
[377297346,1754323870678,-500.0,0.00052055,120]
[377297347,1754323870688,-500.0,0.00052055,120]
[377297348,1754323870699,-663.0,0.00052055,120]
[377297349,1754323870708,-557.0,0.00052055,120]
[377297350,1754323870718,-500.0,0.00052055,120]
[377297351,1754323870727,-500.0,0.00052055,120]
[377297352,1754323870737,-188.97842339,0.00052055,120]
[377297353,1754323870747,-1000.0,0.0005207,10]
[377297354,1754323870757,-1251.0,0.00052072,120]
[377297355,1754323870767,-3358.0,0.00052072,120]
[377297356,1754323870777,-955.0,0.00052072,120]
[377297357,1754323870787,-809.0,0.00052072,2]
[377297358,1754323870797,-1292.0,0.00052072,120]
[377297359,1754323870807,-2021.0,0.00052072,120]
[377297360,1754323870817,-564.0,0.00052072,120]
[377297361,1754323870827,-958.0,0.00052072,120]
[377297362,1754323870837,-1651.0,0.00052072,120]
[377297363,1754323870847,-1169.0,0.00052072,120]
[377297364,1754323870858,-1504.73,0.0005208,120]
[377297365,1754323870867,-411.35,0.000521,14]
[377297366,1754323870877,-1325.0,0.000521,2]
[377297367,1754323870888,-168.98148147,0.0005211,120]
[377297368,1754323870898,-523.9437056,0.00052171,120]
[377297369,1754323870908,-750.0,0.0005226,10]
[377297370,1754323870918,-933.0,0.0005228,2]
[377297371,1754323870928,-212.0,0.000523,30]
[377297372,1754323870938,-2983.99772236,0.000523,2]
[377297373,1754323870948,-708.0,0.00052329,120]
[377297374,1754323870959,-500.0,0.00052329,120]
[377297375,1754323870970,-500.0,0.00052329,120]
[377297376,1754323870981,-742.0,0.00052329,120]
[377297377,1754323870991,-500.0,0.00052329,2]
[377297378,1754323871001,-500.0,0.00052329,120]
[377297379,1754323871011,-500.0,0.00052329,120]
[377297380,1754323871022,-663.0,0.00052329,120]
[377297381,1754323871033,-557.0,0.00052329,120]
[377297382,1754323871043,-500.0,0.00052329,120]
[377297383,1754323871053,-500.0,0.00052329,120]
[377297384,1754323871064,-537.09,0.00052329,30]
[377297385,1754323871074,-150.0,0.00052329,30]
[377297386,1754323871292,-165.39,0.00052329,30]
[377297387,1754323871303,-172.88,0.00052329,30]
[377297388,1754323871314,-150.0,0.00052329,30]
[377297389,1754323871330,-150.0,0.00052329,30]
[377297390,1754323871341,-359.08,0.00052329,30]
[377297391,1754323871351,-537.09,0.00052329,30]
[377297392,1754323871363,-150.0,0.00052329,30]
[377297393,1754323871373,-359.08,0.00052329,30]
[377297394,1754323871383,-172.88,0.00052329,30]
[377297395,1754323871393,-150.0,0.00052329,30]
[377297396,1754323871404,-150.0,0.00052329,30]
[377297397,1754323871414,-165.39,0.00052329,30]
[377297398,1754323871423,-172.88,0.00052329,30]
[377297399,1754323871433,-150.0,0.00052329,30]
[377297400,1754323871456,-537.09,0.00052329,30]
[377297401,1754323871466,-165.39,0.00052329,30]
[377297402,1754323871476,-150.0,0.00052329,30]
[377297403,1754323871486,-150.0,0.00052329,30]
[377297404,1754323871496,-359.08,0.00052329,30]
[377297405,1754323871506,-150.0,0.00052329,30]
[377297406,1754323871516,-172.88,0.00052329,30]
[377297407,1754323871527,-537.09,0.00052329,30]
[377297408,1754323871537,-150.0,0.00052329,30]
[377297409,1754323871547,-165.39,0.00052329,30]
[377297410,1754323871557,-150.0,0.00052329,30]
[377297411,1754323871567,-359.08,0.00052329,30]
[377297412,1754323871577,-537.09,0.00052329,30]
[377297413,1754323871587,-150.0,0.00052329,30]
[377297414,1754323871596,-150.0,0.00052329,30]
[377297415,1754323871606,-359.08,0.00052329,30]
[377297416,1754323871616,-172.88,0.00052329,30]
[377297417,1754323871626,-165.39,0.00052329,30]
[377297418,1754323871636,-537.09,0.00052329,30]
[377297419,1754323871646,-281.98,0.00052329,30]
[377297420,1754323871656,-172.88,0.00052329,30]
[377297421,1754323871666,-150.0,0.00052329,30]
[377297422,1754323871676,-359.08,0.00052329,30]
[377297423,1754323871686,-172.88,0.00052329,30]
[377297424,1754323871695,-537.09,0.00052329,30]
[377297425,1754323871705,-150.0,0.00052329,30]
[377297426,1754323871714,-359.08,0.00052329,30]
[377297427,1754323871724,-330.78,0.00052329,30]
[377297428,1754323871734,-172.88,0.00052329,30]
[377297429,1754323871744,-537.09,0.00052329,30]
[377297430,1754323871754,-165.39,0.00052329,30]
[377297431,1754323871763,-150.0,0.00052329,30]
[377297432,1754323871773,-359.08,0.00052329,30]
[377297433,1754323871784,-537.09,0.00052329,30]
[377297434,1754323871794,-150.0,0.00052329,30]
[377297435,1754323871804,-359.08,0.00052329,30]
[377297436,1754323871813,-172.88,0.00052329,30]
[377297437,1754323871823,-165.39,0.00052329,30]
[377297438,1754323871833,-500.0,0.00052337,13]
[377297439,1754323871844,-500.0,0.00052337,13]
[377297440,1754323871853,-500.0,0.00052337,13]
[377297441,1754323871863,-500.0,0.00052337,13]
[377297442,1754323871873,-500.0,0.00052337,13]
[377297443,1754323871884,-500.0,0.00052337,13]
[377297444,1754323871894,-500.0,0.00052337,13]
[377297445,1754323871903,-500.0,0.00052337,13]
[377297446,1754323871914,-500.0,0.00052337,13]
[377297447,1754323871924,-500.0,0.00052337,13]
[377297448,1754323871934,-500.0,0.00052337,13]
[377297449,1754323871944,-500.0,0.00052337,13]
[377297450,1754323871954,-500.0,0.00052337,13]
[377297451,1754323871964,-500.0,0.00052337,13]
[377297452,1754323871974,-500.0,0.00052337,13]
[377297453,1754323871985,-500.0,0.00052337,13]
[377297454,1754323871995,-500.0,0.00052337,13]
[377297455,1754323872006,-500.0,0.00052337,13]
[377297456,1754323872016,-500.0,0.00052337,13]
[377297457,1754323872026,-500.0,0.00052337,13]
[377297458,1754323872036,-500.0,0.00052337,13]
[377297459,1754323872047,-500.0,0.00052337,13]
[377297460,1754323872057,-500.0,0.00052337,13]
[377297461,1754323872067,-500.0,0.00052337,13]
[377297462,1754323872077,-500.0,0.00052337,13]
[377297463,1754323872088,-500.0,0.00052337,13]
[377297464,1754323872098,-500.0,0.00052337,13]
[377297465,1754323872108,-500.0,0.00052337,13]
[377297466,1754323872118,-527.0,0.00052337,13]
[377297467,1754323872128,-200.0,0.00052337,2]
[377297468,1754323872138,-200.0,0.00052337,2]
[377297469,1754323872149,-200.0,0.00052337,2]
[377297470,1754323872160,-200.0,0.00052337,2]
[377297471,1754323872173,-200.0,0.00052337,2]
[377297472,1754323872185,-200.0,0.00052337,2]
[377297473,1754323872199,-200.0,0.00052337,2]
[377297474,1754323872216,-200.0,0.00052337,2]
[377297475,1754323872228,-200.0,0.00052337,2]
[377297476,1754323872238,-200.0,0.00052337,2]
[377297477,1754323872249,-200.0,0.00052337,2]
[377297478,1754323872259,-200.0,0.00052337,2]
[377297479,1754323872269,-200.0,0.00052337,2]
[377297480,1754323872280,-500.0,0.00052337,13]
[377297481,1754323872290,-1504.73,0.00052354,120]
[377297482,1754323872300,-512.0,0.00052385,27]
[377297483,1754323872311,-151.0,0.000524,120]
[377297484,1754323872324,-500.0,0.00052432,120]
[377297485,1754323872334,-199.0,0.00052435,33]
[377297486,1754323872345,-385.56291696,0.00052438,120]
[377297487,1754323872357,-523.9437056,0.00052442,120]
[377297488,1754323872368,-1733.0,0.00052457,30]
[377297489,1754323872378,-4000.0,0.00052468,8]
[377297491,1754323872388,-2110.0,0.000525,30]
[377297492,1754323872399,-958.10858698,0.00052596,49]
[377297493,1754323872410,-708.0,0.00052603,120]
[377297494,1754323872420,-500.0,0.00052603,120]
[377297495,1754323872429,-500.0,0.00052603,120]
[377297496,1754323872439,-500.0,0.00052603,120]
[377297497,1754323872449,-742.0,0.00052603,120]
[377297498,1754323872459,-500.0,0.00052603,2]
[377297499,1754323872782,-500.0,0.00052603,120]
[377297500,1754323872792,-500.0,0.00052603,120]
[377297501,1754323872804,-663.0,0.00052603,120]
[377297502,1754323872815,-557.0,0.00052603,120]
[377297503,1754323872825,-400.0,0.00052603,120]
[377297504,1754323872835,-500.0,0.00052603,120]
[377297505,1754323872850,-151.0,0.0005261,120]
[377297506,1754323872859,-152.0,0.00052613,6]
[377297507,1754323872870,-1504.73,0.00052628,120]
[377297508,1754323872879,-500.0,0.00052644,60]
[377297509,1754323872889,-2000.0,0.0005265,46]
[377297510,1754323872901,-385.56291696,0.00052658,120]
[377297511,1754323872913,-500.0,0.00052676,30]
[377297512,1754323872924,-500.0,0.00052676,30]
[377297513,1754323872934,-500.0,0.00052676,30]
[377297514,1754323872944,-394.0,0.0005268,30]
[377297515,1754323872954,-523.9437056,0.00052713,120]
[377297516,1754323872963,-273.29,0.00052738,2]
[377297517,1754323872973,-411.35,0.000528,14]
[377297518,1754323872983,-176.53,0.000528,30]
[377297519,1754323872993,-888.57249602,0.00052808,10]
[377297520,1754323873003,-500.0,0.00052811,120]
[377297521,1754323873013,-708.0,0.00052877,120]
[377297522,1754323873023,-500.0,0.00052877,120]
[377297523,1754323873034,-500.0,0.00052877,120]
[377297524,1754323873044,-742.0,0.00052877,120]
[377297525,1754323873054,-500.0,0.00052877,2]
[377297526,1754323873064,-451.37614525,0.00052877,120]
[377297527,1754323873074,-500.0,0.00052877,120]
[377297528,1754323873085,-663.0,0.00052877,120]
[377297529,1754323873096,-557.0,0.00052877,120]
[377297530,1754323873106,-500.0,0.00052877,120]
[377297531,1754323873115,-385.56291696,0.00052877,120]
[377297532,1754323873125,-158.1654047,0.000529,30]
[377297533,1754323873135,-153.0,0.000529,120]
[377297534,1754323873145,-2983.99772236,0.000529,2]
[377297535,1754323873154,-1504.73,0.00052902,120]
[377297536,1754323873164,-1915.4694458,0.00052964,2]
[377297537,1754323873174,-512.0,0.00052971,29]
[377297538,1754323873183,-523.9437056,0.00052984,120]
[377297539,1754323873193,-5000.0,0.0005299,60]
[377297540,1754323873202,-1733.0,0.00052998,30]
[377297541,1754323873212,-50000.0,0.00053,53]
[377297542,1754323873222,-50000.0,0.00053,63]
[377297543,1754323873232,-544.0962476,0.00053,120]
[377297544,1754323873244,-500.0,0.00053,120]
[377297545,1754323873254,-1000000.0,0.00053,120]
[377297546,1754323873263,-1000.0,0.00053,120]
[377297547,1754323873273,-720.0,0.00053,120]
[377297548,1754323873284,-2000.0,0.00053,120]
[377297549,1754323873293,-833.0,0.00053,120]
[377297550,1754323873303,-199.02807,0.00053,120]
[377297551,1754323873313,-199.028078,0.00053,120]
[377297552,1754323873327,-261.15889,0.00053,120]
[377297553,1754323873336,-428.456368,0.00053,120]
[377297554,1754323873346,-151.0,0.00053,120]
[377297555,1754323873355,-151.0,0.00053,120]
[377297556,1754323873365,-151.0,0.00053,120]
[377297557,1754323873375,-205.768416,0.00053,120]
[377297558,1754323873385,-151.0,0.00053,120]
[377297559,1754323873394,-415.606142,0.00053,120]
[377297560,1754323873405,-415.606142,0.00053,120]
[377297561,1754323873415,-151.0,0.00053,120]
[377297562,1754323873425,-214.661825,0.00053,120]
[377297563,1754323873434,-214.661825,0.00053,120]
[377297564,1754323873444,-151.0,0.00053,120]
[377297565,1754323873453,-151.0,0.00053,120]
[377297566,1754323873462,-151.0,0.00053,120]
[377297567,1754323873472,-463.222638,0.00053,120]
[377297568,1754323873482,-463.222638,0.00053,120]
[377297569,1754323873491,-1274.135874,0.00053,20]
[377297570,1754323873500,-391.487444,0.00053,120]
[377297571,1754323873509,-1274.135874,0.00053,20]
[377297572,1754323873519,-391.487444,0.00053,120]
[377297573,1754323873530,-151.0,0.00053,120]
[377297574,1754323873539,-151.0,0.00053,120]
[377297575,1754323873549,-151.0,0.00053,120]
[377297576,1754323873559,-151.0,0.00053,120]
[377297577,1754323873568,-151.0,0.00053,120]
[377297578,1754323873578,-151.0,0.00053,120]
[377297579,1754323873587,-151.0,0.00053,120]
[377297580,1754323873598,-151.0,0.00053,120]
[377297581,1754323873610,-151.0,0.00053,120]
[377297582,1754323873619,-151.0,0.00053,120]
[377297583,1754323873629,-151.0,0.00053,120]
[377297584,1754323873639,-173.24989,0.00053,120]
[377297585,1754323873649,-173.24989,0.00053,120]
[377297586,1754323873659,-856.162897,0.00053,120]
[377297587,1754323873669,-151.0,0.00053,120]
[377297588,1754323873678,-151.0,0.00053,120]
[377297589,1754323873688,-151.0,0.00053,120]
[377297590,1754323873697,-151.0,0.00053,120]
[377297591,1754323873707,-212.483811,0.00053,120]
[377297592,1754323873717,-212.483811,0.00053,120]
[377297593,1754323873727,-328.510009,0.00053,120]
[377297594,1754323873737,-328.510009,0.00053,120]
[377297595,1754323873746,-151.0,0.00053,120]
[377297596,1754323873756,-151.0,0.00053,120]
[377297597,1754323873765,-264.839833,0.00053,120]
[377297598,1754323873775,-151.0,0.00053,120]
[377297599,1754323873786,-151.0,0.00053,120]
[377297600,1754323873796,-151.0,0.00053,120]
[377297601,1754323873805,-516.197833,0.00053,120]
[377297602,1754323873814,-516.197833,0.00053,120]
[377297603,1754323873824,-288.893334,0.00053,120]
[377297604,1754323873834,-288.893334,0.00053,120]
[377297605,1754323873844,-2110.0,0.00053,30]
[377297606,1754323873853,-278.955316,0.00053,120]
[377297607,1754323873863,-278.955316,0.00053,120]
[377297608,1754323873873,-151.0,0.00053,120]
[377297609,1754323873883,-151.0,0.00053,120]
[377297610,1754323873892,-766.426044,0.00053,120]
[377297611,1754323873902,-766.426044,0.00053,120]
[377297612,1754323873911,-1314.138074,0.00053,120]
[377297613,1754323873921,-1314.138074,0.00053,120]
[377297614,1754323873931,-151.0,0.00053,120]
[377297615,1754323873940,-151.0,0.00053,120]
[377297616,1754323873950,-151.0,0.00053,120]
[377297617,1754323873959,-151.0,0.00053,60]
[377297618,1754323873969,-216.513413,0.00053,120]
[377297619,1754323873978,-216.513413,0.00053,120]
[377297620,1754323873988,-151.0,0.00053,120]
[377297621,1754323873997,-151.0,0.00053,120]
[377297622,1754323874007,-187.016566,0.00053,120]
[377297623,1754323874017,-187.016566,0.00053,120]
[377297624,1754323874027,-556.81586,0.00053,120]
[377297625,1754323874037,-193.901658,0.00053,120]
[377297626,1754323874046,-556.81586,0.00053,120]
[377297627,1754323874056,-151.0,0.00053,120]
[377297628,1754323874065,-193.901658,0.00053,120]
[377297629,1754323874075,-151.0,0.00053,120]
[377297630,1754323874084,-151.0,0.00053,120]
[377297631,1754323874094,-151.0,0.00053,120]
[377297632,1754323874103,-151.0,0.00053,120]
[377297633,1754323874114,-151.0,0.00053,120]
[377297634,1754323874123,-512.756802,0.00053,120]
[377297635,1754323874133,-512.756802,0.00053,120]
[377297636,1754323874142,-269.725433,0.00053,120]
[377297637,1754323874151,-269.725433,0.00053,120]
[377297638,1754323874161,-151.0,0.00053,120]
[377297639,1754323874170,-309.660303,0.00053,120]
[377297640,1754323874181,-309.660303,0.00053,120]
[377297641,1754323874190,-305.054583,0.00053,120]
[377297642,1754323874200,-305.054583,0.00053,120]
[377297643,1754323874210,-210.191311,0.00053,120]
[377297644,1754323874219,-704.590221,0.00053,120]
[377297645,1754323874228,-172.71721845,0.00053,120]
[377297646,1754323874237,-704.590221,0.00053,120]
[377297647,1754323874247,-153.924964,0.00053,120]
[377297648,1754323874256,-151.0,0.00053,120]
[377297649,1754323874266,-156.868073,0.00053,120]
[377297650,1754323874275,-151.0,0.00053,120]
[377297651,1754323874285,-1030.083822,0.00053,120]
[377297652,1754323874294,-1030.083822,0.00053,120]
[377297653,1754323874305,-190.35187,0.00053,120]
[377297654,1754323874315,-151.0,0.00053,120]
[377297655,1754323874330,-190.35187,0.00053,120]
[377297656,1754323874341,-390.157222,0.00053,120]
[377297657,1754323874350,-151.0,0.00053,120]
[377297658,1754323874359,-390.157222,0.00053,120]
[377297659,1754323874371,-268.131114,0.00053,120]
[377297660,1754323874381,-182.661135,0.00053,120]
[377297661,1754323874391,-182.661135,0.00053,120]
[377297662,1754323874402,-344.725477,0.00053,120]
[377297663,1754323874412,-344.725477,0.00053,120]
[377297664,1754323874422,-151.0,0.00053,120]
[377297665,1754323874432,-189.632918,0.00053,120]
[377297666,1754323874449,-210.11698,0.00053,120]
[377297667,1754323874468,-189.632918,0.00053,120]
[377297668,1754323874487,-210.11698,0.00053,120]
[377297669,1754323874506,-151.0,0.00053,120]
[377297670,1754323874524,-151.0,0.00053,120]
[377297671,1754323874540,-151.0,0.00053,120]
[377297672,1754323874560,-272.313877,0.00053,120]
[377297673,1754323874580,-151.0,0.00053,120]
[377297674,1754323874599,-355.511064,0.00053,120]
[377297675,1754323874616,-355.511064,0.00053,120]
[377297676,1754323874636,-151.0,0.00053,120]
[377297677,1754323874653,-492.852847,0.00053,120]
[377297678,1754323874667,-492.852847,0.00053,120]
[377297679,1754323874685,-1402.693651,0.00053,120]
[377297680,1754323874700,-360.017213,0.00053,120]
[377297681,1754323874718,-360.017213,0.00053,120]
[377297682,1754323874732,-1402.693651,0.00053,120]
[377297683,1754323874747,-319.600664,0.00053,120]
[377297684,1754323874762,-319.600664,0.00053,120]
[377297685,1754323874777,-499.430676,0.00053,120]
[377297686,1754323874792,-153.035634,0.00053,120]
[377297687,1754323874807,-153.035634,0.00053,120]
[377297688,1754323874822,-499.430676,0.00053,120]
[377297689,1754323874837,-206.0,0.00053011,120]
[377297690,1754323874853,-385.56291696,0.00053068,120]
[377297691,1754323874870,-543.8,0.00053101,120]
[377297692,1754323874886,-249.15,0.00053108,120]
[377297693,1754323874902,-708.0,0.00053151,120]
[377297694,1754323874918,-500.0,0.00053151,120]
[377297695,1754323874933,-500.0,0.00053151,120]
[377297696,1754323874957,-742.0,0.00053151,120]
[377297697,1754323874972,-500.0,0.00053151,2]
[377297698,1754323874987,-500.0,0.00053151,120]
[377297699,1754323875003,-663.0,0.00053151,120]
[377297700,1754323875019,-557.0,0.00053151,120]
[377297701,1754323875034,-500.0,0.00053151,120]
[377297702,1754323875049,-1504.73,0.00053176,120]
[377297703,1754323875065,-287.24012987,0.00053192,15]
[377297704,1754323875081,-912.0,0.0005322,2]
[377297705,1754323875097,-523.9437056,0.00053256,120]